bitfinex-derivatives/quotes_ETHF0:USTF0_20251001
["timestamp","ask_amount","ask_price","bid_price","bid_amount"]
[1759308569739,3.2736,4295.7,4294.9,6.72460645]
[1759308569939,3.2736,4295.7,4295.0,3.1543]
[1759308570136,3.2736,4295.7,4295.3,0.4189]
[1759308570333,3.2736,4295.7,4295.1,0.41891]
[1759308570540,0.36,4295.8,4295.2,0.41891]
[1759308570742,3.2736,4295.7,4294.9,6.36460645]
[1759308571039,0.36,4295.8,4295.2,0.4189]
[1759308571242,3.2078,4296.0,4295.2,4.20158]
[1759308571444,3.2078,4296.0,4295.6,0.41887]
[1759308571647,3.2078,4296.0,4295.4,0.41889]
[1759308571952,3.2078,4296.0,4295.7,0.41886]
[1759308572140,3.2736,4295.9,4295.2,3.1543]
[1759308572341,3.2736,4295.9,4294.9,0.00250645]
[1759308572541,3.2736,4295.9,4295.1,0.41891]
[1759308572844,3.2736,4295.7,4295.1,0.41891]
[1759308573042,3.2736,4295.5,4295.2,0.4189]
[1759308573241,0.36,4295.6,4295.2,0.4189]
[1759308573456,3.2736,4295.5,4295.2,0.4189]
[1759308573649,3.2736,4296.1,4295.4,3.2078]
[1759308573836,3.6336,4296.7,4296.0,0.41882]
[1759308574241,40.8,4296.6,4296.0,0.41882]
[1759308574448,40.8,4296.6,4296.1,0.41881]
[1759308574645,0.36,4296.5,4296.2,0.4188]
[1759308574843,3.2736,4296.4,4296.2,0.4188]
[1759308575348,0.36,4296.5,4296.2,0.4188]
[1759308575548,40.8,4296.6,4295.9,3.2078]
[1759308575749,6.8404,4296.8,4296.5,0.41878]
[1759308576144,6.4814,4296.8,4296.5,0.41878]
[1759308576643,44.0736,4296.7,4296.5,0.41878]
[1759308576839,41.159,4296.7,4296.3,0.41879]
[1759308577038,3.2736,4296.6,4296.4,0.41879]
[1759308577339,3.2736,4296.6,4295.9,3.98564]
[1759308577543,40.8,4296.7,4296.0,4.4497]
[1759308577749,3.2736,4297.2,4297.0,0.41873]
[1759308577946,3.2078,4297.3,4296.6,0.41877]
[1759308577947,3.2736,4296.9,4296.6,0.41877]
[1759308578148,40.8,4296.8,4296.7,0.41876]
[1759308578353,3.2736,4297.0,4296.8,0.41875]
[1759308578541,3.2736,4297.0,4296.6,0.41877]
[1759308578748,0.359,4296.9,4296.5,0.41878]
[1759308578945,0.359,4296.9,4296.1,0.359]
[1759308578946,6.4814,4296.8,4296.1,0.359]
[1759308579247,3.2736,4296.4,4295.6,3.2078]
[1759308579544,3.2736,4296.2,4295.6,3.2078]
[1759308580053,0.359,4296.3,4295.8,0.41884]
[1759308580244,3.2736,4296.2,4295.6,3.2078]
[1759308580447,1.66287,4298.4,4297.6,3.1543]
[1759308580648,3.2078,4298.6,4297.8,3.2078]
[1759308580939,0.359,4298.3,4297.7,0.41865]
[1759308581343,0.359,4298.1,4297.5,3.1543]
[1759308581545,0.358,4298.4,4297.8,3.2078]
[1759308581744,0.358,4298.0,4297.6,0.41866]
[1759308582048,0.358,4298.0,4297.3,3.2078]
[1759308582448,0.358,4298.0,4296.8,3.2078]
[1759308582449,3.2078,4297.7,4296.8,3.2078]
[1759308582750,0.358,4297.6,4297.3,3.2078]
[1759308582952,3.1928,4297.6,4296.7,3.98455]
[1759308583253,2.8348,4297.4,4296.4,3.1543]
[1759308583451,0.358,4297.3,4296.4,3.1543]
[1759308583652,2.8348,4297.2,4296.3,0.41879]
[1759308584049,2.8348,4296.9,4296.2,3.2078]
[1759308584246,0.358,4296.8,4296.2,3.2078]
[1759308584550,2.8348,4296.9,4296.4,3.1543]
[1759308584751,2.8348,4296.9,4296.2,3.2078]
[1759308584949,0.358,4296.8,4296.2,3.6266]
[1759308585148,0.358,4296.8,4296.4,0.41878]
[1759308585349,0.358,4296.8,4296.4,3.1543]
[1759308585545,2.8348,4297.7,4296.7,3.2078]
[1759308585747,0.358,4297.6,4296.7,3.2078]
[1759308586247,0.358,4297.6,4296.0,1.2954]
[1759308586248,2.8348,4297.4,4296.0,4.5032]
[1759308586453,2.8348,4297.2,4296.5,0.41878]
[1759308586647,0.358,4297.1,4296.5,0.41878]
[1759308586848,0.358,4297.1,4296.0,4.5032]
[1759308587253,2.8348,4297.0,4296.0,3.2078]
[1759308587447,7.2868,4297.0,4296.0,3.2078]
[1759308587651,3.4468,4297.0,4296.0,3.2078]
[1759308587957,0.357,4296.9,4296.2,0.41881]
[1759308588159,2.8348,4297.0,4296.0,4.5032]
[1759308588460,0.357,4296.9,4296.0,4.5032]
[1759308588644,44.0078,4297.3,4296.5,3.2078]
[1759308588645,0.357,4297.2,4296.5,3.2078]
[1759308589156,0.357,4297.2,4296.5,4.92198]
[1759308589650,40.8,4297.3,4296.8,3.1543]
[1759308589852,2.8348,4298.2,4297.2,3.2078]
[1759308590057,2.8348,4297.8,4296.6,3.1543]
[1759308590350,2.8348,4297.6,4296.7,0.41876]
[1759308590551,2.8348,4297.4,4296.5,3.2078]
[1759308590757,0.357,4297.3,4296.5,3.62658]
[1759308591052,2.8348,4297.4,4296.7,0.41876]
[1759308591257,2.8348,4297.6,4297.2,3.2078]
[1759308591457,0.357,4297.6,4297.3,3.1543]
[1759308591659,40.8,4297.7,4297.2,3.2078]
[1759308592052,2.8348,4297.5,4297.2,3.2078]
[1759308592655,5.0,4297.4,4296.6,3.2078]
[1759308592856,0.357,4297.3,4296.6,3.2078]
[1759308593150,2.8305,4297.2,4296.6,3.2078]
[1759308593958,2.8305,4297.0,4296.2,3.1543]
[1759308594259,2.8305,4296.8,4295.6,3.0431]
[1759308594452,3.2078,4296.5,4295.6,3.0431]
[1759308594758,0.356,4296.4,4295.6,3.0431]
[1759308595053,1.66287,4297.2,4297.0,1.2498]
[1759308595263,9.37,4297.2,4297.1,3.0431]
[1759308595456,9.37,4297.2,4297.1,6.2509]
[1759308595757,3.0532,4298.3,4297.1,6.2509]
[1759308595758,3.0532,4297.5,4297.1,6.2509]
[1759308595968,0.356,4297.6,4296.7,3.0431]
[1759308596253,3.0532,4296.9,4296.1,3.0431]
[1759308596446,0.356,4296.8,4296.1,3.0431]
[1759308597049,3.5638,4296.8,4296.1,3.0431]
[1759308597249,3.5638,4296.8,4295.6,3.0431]
[1759308597453,3.0532,4296.7,4295.6,3.0431]
[1759308597653,1.66287,4297.0,4295.7,3.2078]
[1759308597847,3.0532,4296.9,4295.8,3.0431]
[1759308598059,1.66287,4297.5,4297.1,3.0431]
[1759308598250,1.6878047,4297.9,4297.6,3.0431]
[1759308598450,8.2749347,4297.9,4297.6,3.0431]
[1759308598648,8.2749347,4297.9,4297.5,1.2498]
[1759308598649,0.94735734,4297.9,4297.8,3.46175]
[1759308598856,2.06172427,4299.3,4297.8,3.46175]
[1759308598857,3.2078,4300.4,4299.5,0.6249]
[1759308599048,3.2078,4299.8,4299.1,3.0431]
[1759308599252,0.356,4299.7,4299.1,3.0431]
[1759308599455,0.356,4299.7,4299.3,0.41851]
[1759308599456,9.12,4299.7,4299.3,0.41851]
[1759308599658,0.7685,4300.0,4299.9,0.41845]
[1759308599855,0.33333333,4300.6,4300.5,4.0367]
[1759308600054,12.60653333,4300.6,4299.9,3.2078]
[1759308600257,3.0532,4300.4,4299.3,3.56573994]
[1759308600457,3.0532,4299.9,4299.5,3.2078]
[1759308600757,3.54304911,4300.6,4299.6,2.6965]
[1759308600758,0.33524911,4300.6,4299.6,2.6965]
[1759308600957,0.33524911,4300.6,4300.3,3.2078]
[1759308601559,3.0532,4300.4,4299.4,0.355]
[1759308601861,3.0532,4300.2,4299.4,0.355]
[1759308602057,3.2078,4299.9,4299.3,0.00193994]
[1759308602359,1.2309,4300.5,4299.3,0.00193994]
[1759308602360,3.0532,4299.5,4299.3,0.00193994]
[1759308602548,3.4082,4299.4,4299.3,0.00193994]
[1759308602750,1.2309,4299.0,4297.5,3.2078]
[1759308602950,3.0532,4298.3,4297.5,3.2078]
[1759308603160,3.0532,4298.3,4294.8,0.78119569]
[1759308603161,3.0532,4297.7,4296.4,3.2078]
[1759308603361,3.2078,4296.7,4295.9,3.2078]
[1759308603563,3.0532,4296.5,4295.6,0.355]
[1759308603860,3.0532,4296.5,4295.6,0.35699921]
[1759308603861,3.05500141,4296.5,4295.6,0.35699921]
[1759308604160,0.00180141,4296.5,4296.1,3.2078]
[1759308604359,2.88566523,4297.9,4296.1,3.2078]
[1759308604360,2.06172427,4298.7,4297.2,1.04677]
[1759308604658,3.2078,4300.2,4296.9,10.46846]
[1759308604659,3.0532,4300.1,4298.6,3.2078]
[1759308604856,3.0532,4300.1,4296.8,2.09375]
[1759308604857,7.82e-06,4302.4,4302.3,0.41821]
[1759308605057,7.88173334,4305.6,4302.3,39.8788]
[1759308605252,0.34322168,4304.5,4304.0,3.2078]
[1759308605451,0.34322168,4304.5,4304.1,0.355]
[1759308605651,0.00619655,4305.9,4304.1,0.355]
[1759308605854,0.00619655,4305.9,4305.6,3.2078]
[1759308606257,1.2309,4307.4,4305.6,3.2078]
[1759308606455,1.2309,4307.4,4307.0,3.2078]
[1759308606658,0.00206479,4307.4,4307.0,3.21052662]
[1759308606864,0.33333333,4308.5,4307.2,0.41773]
[1759308607159,0.33333333,4308.5,4307.8,3.2078]
[1759308607357,3.0532,4307.9,4307.1,3.2078]
[1759308607557,3.0532,4307.5,4307.0,2.662e-05]
[1759308607756,3.0532,4307.0,4306.1,3.2078]
[1759308608152,8.0532,4307.0,4306.1,3.2078]
[1759308608357,8.0532,4307.0,4302.3,1.59135889]
[1759308608358,42.0309,4306.5,4305.7,3.2078]
[1759308608558,3.0532,4306.3,4305.5,3.2078]
[1759308608762,3.4072,4306.3,4305.5,3.2078]
[1759308608964,3.0532,4307.1,4306.0,3.2078]
[1759308609164,3.0532,4306.9,4306.0,3.2078]
[1759308609363,3.0532,4306.6,4305.4,3.2078]
[1759308609663,3.0532,4305.9,4304.6,0.00174044]
[1759308609874,0.354,4305.8,4305.0,3.2078]
[1759308610069,0.00213626,4305.9,4305.5,3.2078]
[1759308610268,0.354,4307.3,4305.6,1.0006]
[1759308610463,0.354,4307.3,4305.5,3.5618]
[1759308610464,3.2078,4308.8,4307.2,3.2078]
[1759308610672,3.2078,4307.9,4307.2,3.2078]
[1759308610860,1.2309,4308.0,4307.2,3.2078]
[1759308611061,3.2078,4307.4,4306.4,3.2078]
[1759308611268,0.00174014,4307.4,4306.4,3.5618]
[1759308611466,3.20954014,4307.4,4306.4,3.2078]
[1759308611659,0.00174014,4307.4,4306.0,1.0006]
[1759308611864,0.00174014,4307.4,4305.1,10.44863]
[1759308611865,3.2078,4309.1,4307.6,0.4177]
[1759308612064,3.0532,4309.2,4308.3,3.2078]
[1759308612266,1.2309,4310.0,4308.4,1.0006]
[1759308612569,3.2078,4310.4,4309.5,3.2078]
[1759308612771,0.00280038,4310.4,4310.1,0.6673]
[1759308612977,3.2078,4312.0,4310.3,0.6645]
[1759308613268,4.2841,4312.0,4310.8,3.2078]
[1759308613463,3.2078,4311.9,4310.8,3.2078]
[1759308613670,3.0532,4311.3,4310.8,3.2078]
[1759308613872,0.00264277,4311.3,4310.8,3.2078]
[1759308614068,7.4919,4312.0,4310.8,3.2078]
[1759308614264,5.29214175,4320.7,4315.3,3.2077]
[1759308614265,3.2078,4318.1,4315.3,3.2077]
[1759308614465,5.29214175,4320.7,4317.3,0.41676]
[1759308614466,3.2078,4320.0,4317.3,0.41676]
[1759308614665,3.2078,4320.0,4316.6,3.2078]
[1759308614666,0.24394643,4319.4,4318.7,0.41662]
[1759308614869,0.24394643,4319.4,4319.0,0.4166]
[1759308615073,0.24394643,4319.4,4318.8,36.621]
[1759308615074,36.263,4323.7,4320.4,0.41646]
[1759308615262,0.3351986,4320.5,4320.4,0.357]
[1759308615463,0.3351986,4320.5,4319.4,0.361]
[1759308615669,0.3351986,4320.5,4320.1,0.41648]
[1759308615866,0.33333333,4324.4,4322.0,2.8726014]
[1759308615867,0.106,4322.8,4322.0,2.8726014]
[1759308616071,0.106,4322.8,4320.2,0.361]
[1759308616072,0.363,4323.3,4322.6,3.2078]
[1759308616265,3.0532,4322.8,4322.6,3.2078]
[1759308616471,3.0532,4322.6,4320.1,3.0431]
[1759308616774,3.0532,4322.6,4319.0,3.2078]
[1759308616775,3.2078,4320.2,4319.0,3.2078]
[1759308616971,0.00244792,4320.2,4319.6,3.0431]
[1759308617168,0.00244792,4320.2,4320.1,3.0431]
[1759308617369,3.2078,4322.2,4320.1,3.4141]
[1759308617577,3.0532,4323.3,4322.1,3.2078]
[1759308617776,4.0641296,4331.5,4320.7,3.2078]
[1759308617777,3.0532,4322.7,4320.7,3.2078]
[1759308617977,3.0532,4320.8,4319.8,3.2078]
[1759308618170,3.0532,4320.8,4318.5,0.381]
[1759308618171,3.0532,4320.2,4318.5,6.2509]
[1759308618368,6.261,4318.7,4316.9,3.2078]
[1759308618674,40.8,4318.6,4317.7,3.2078]
[1759308618878,40.8,4318.6,4317.4,3.0431]
[1759308618879,1.2309,4320.0,4318.3,3.0431]
[1759308619172,1.2309,4320.0,4318.9,3.2078]
[1759308619381,0.00264429,4320.2,4319.6,3.0579]
[1759308619680,3.2078,4322.4,4320.2,3.0553]
[1759308619868,6.413,4322.5,4321.1,3.2078]
[1759308620067,1.3392,4326.0,4321.6,3.2078]
[1759308620068,3.2078,4323.0,4321.6,3.2078]
[1759308620277,3.2078,4324.0,4322.3,3.2078]
[1759308620483,3.2052,4322.5,4322.3,0.00256775]
[1759308620670,3.2052,4322.3,4320.3,3.2078]
[1759308620871,3.2052,4321.4,4320.3,3.2078]
[1759308621074,6.413,4322.2,4320.9,3.2078]
[1759308621284,3.2078,4322.2,4321.4,3.2078]
[1759308621482,3.2078,4322.6,4321.4,3.5918]
[1759308621670,3.2078,4322.6,4318.9,36.208]
[1759308621671,3.2052,4321.4,4320.3,3.2078]
[1759308622281,3.2078,4321.3,4320.3,3.2078]
[1759308622478,3.2078,4321.3,4319.9,3.4419]
[1759308622479,0.0241188,4322.9,4321.2,3.2078]
[1759308622679,0.33333333,4324.4,4322.4,3.2078]
[1759308622973,3.2078,4327.1,4324.3,3.2078]
[1759308623179,3.2052,4327.3,4326.1,3.2078]
[1759308623374,3.2078,4329.1,4326.6,3.2078]
[1759308623574,3.2078,4329.6,4328.2,0.4157]
[1759308623877,40.8,4332.1,4329.1,10.39061]
[1759308624081,40.8,4332.1,4329.8,10.389]
[1759308624291,3.1356,4332.0,4329.1,0.41562]
[1759308624586,3.1356,4332.0,4329.2,0.386]
[1759308624587,3.5216,4331.9,4329.2,0.386]
[1759308624785,3.1356,4331.7,4329.1,0.00266508]
[1759308624984,3.1356,4331.5,4329.1,0.00266508]
[1759308625482,3.2078,4330.4,4327.5,3.2077]
[1759308625682,3.2078,4328.0,4327.5,3.2077]
[1759308625884,3.2078,4328.0,4327.2,0.4158]
[1759308625885,3.2078,4327.6,4327.2,1.2195]
[1759308626076,3.2078,4327.6,4326.2,3.2626]
[1759308626277,0.6393,4328.1,4326.2,3.2626]
[1759308626278,3.2078,4326.5,4326.2,3.2626]
[1759308626481,3.2078,4326.5,4324.0,36.15]
[1759308626482,3.84902321,4326.5,4324.5,3.2078]
[1759308626684,3.2078,4325.4,4323.9,3.2078]
[1759308626980,3.2078,4324.1,4323.7,3.2626]
[1759308627182,3.2078,4324.6,4323.7,3.2626]
[1759308627585,3.2078,4324.1,4323.7,0.00193063]
[1759308627784,0.7325,4323.9,4320.8,3.2078]
[1759308628082,0.7325,4323.9,4319.6,36.138]
[1759308628083,3.2078,4324.4,4322.5,3.2078]
[1759308628278,3.2078,4326.1,4324.0,3.2078]
[1759308628475,3.2078,4325.5,4324.0,3.2078]
[1759308628691,40.8,4325.4,4324.0,0.0017301]
[1759308628983,3.2078,4326.8,4326.2,0.4159]
[1759308629180,3.2078,4327.9,4326.4,3.2078]
[1759308629382,6.3434,4327.3,4326.4,3.2078]
[1759308629579,3.1356,4326.5,4323.8,3.2626]
[1759308629780,3.1356,4324.4,4323.0,3.2626]
[1759308629985,3.5416,4324.3,4321.9,3.2078]
[1759308630189,0.7308,4321.9,4319.7,3.2078]
[1759308630396,3.2078,4320.7,4319.5,3.2078]
[1759308630581,3.9386,4320.3,4318.2,3.2078]
[1759308630778,3.2078,4319.1,4317.9,3.2626]
[1759308630984,3.20991003,4319.1,4318.7,1.22173367]
[1759308631290,3.2078,4322.5,4319.3,0.41658]
[1759308631483,3.2078,4323.9,4322.2,3.2078]
[1759308631682,3.1356,4324.8,4323.3,3.2078]
[1759308631878,3.2078,4326.8,4324.4,3.2078]
[1759308632077,0.00178019,4326.8,4325.7,3.2078]
[1759308632387,0.00178019,4326.8,4324.4,0.00207545]
[1759308632388,3.2078,4326.1,4324.4,0.00207545]
[1759308632683,0.69178019,4326.8,4324.4,0.00207545]
[1759308632684,3.2078,4326.2,4324.4,0.00207545]
[1759308632882,3.2078,4325.7,4324.4,0.00207545]
[1759308633085,0.00178019,4326.8,4325.6,3.2078]
[1759308633288,0.00178019,4326.8,4326.2,3.2078]
[1759308633589,226.10733333,4332.4,4326.8,3.2626]
[1759308633590,3.2078,4328.7,4326.8,3.2626]
[1759308633780,3.2078,4328.2,4326.9,0.412]
[1759308633981,3.2078,4328.2,4325.3,0.41601]
[1759308633982,3.2078,4325.7,4321.2,0.78119569]
[1759308634184,3.2078,4325.7,4319.3,3.2078]
[1759308634185,3.2078,4321.3,4318.0,0.71618296]
[1759308634378,3.1356,4318.7,4316.9,3.23498]
[1759308634581,3.1356,4317.8,4316.9,0.02718]
[1759308634890,3.2078,4317.0,4316.9,0.02718]
[1759308635088,3.2078,4317.0,4314.0,4.4273]
[1759308635292,3.2078,4316.7,4315.7,3.2078]
[1759308635483,3.2078,4316.7,4316.5,6.4156]
[1759308635484,6.3434,4316.7,4316.5,6.4156]
[1759308635682,3.2078,4316.7,4316.6,6.4156]
[1759308635883,3.2078,4316.7,4314.6,3.2078]
[1759308636187,3.2078,4316.0,4314.6,3.20946932]
[1759308636488,0.0018287,4317.8,4314.6,3.20946932]
[1759308636489,3.2078,4315.0,4314.9,6.4156]
[1759308636792,3.2078,4316.0,4314.6,3.20946932]
[1759308636982,3.2078,4316.0,4315.2,2.1796]
[1759308637183,0.0018287,4317.8,4316.3,0.41687]
[1759308637389,0.0018287,4317.8,4317.4,3.2078]
[1759308637591,0.0018287,4317.8,4317.5,0.422]
[1759308637794,3.1356,4319.2,4317.5,5.422]
[1759308637992,3.2078,4319.4,4318.4,3.2078]
[1759308638197,3.1356,4319.3,4318.4,3.2078]
[1759308638393,3.1356,4319.3,4314.6,10.42559]
[1759308638394,3.1356,4318.6,4317.9,0.422]
[1759308638592,3.1356,4318.6,4315.8,2.1796]
[1759308638593,3.1356,4319.4,4317.7,3.2078]
[1759308638897,3.2078,4319.3,4318.0,3.2078]
[1759308639086,3.21058322,4319.3,4318.0,3.21033355]
[1759308639286,3.1356,4318.1,4318.0,0.00253355]
[1759308639491,3.1356,4318.1,4316.4,3.2078]
[1759308639693,3.1356,4317.2,4316.4,3.2078]
[1759308639889,3.2078,4316.5,4315.0,3.2078]
[1759308640092,3.2078,4315.5,4314.5,3.2078]
[1759308640288,3.2078,4315.0,4313.5,3.2078]
[1759308640490,3.2078,4313.7,4313.0,3.2078]
[1759308640689,0.00167418,4315.0,4312.8,0.42]
[1759308640893,0.00167418,4315.0,4314.7,3.2078]
[1759308641092,3.2078,4316.0,4314.7,3.2078]
[1759308641293,3.2078,4316.0,4313.1,3.2078]
[1759308641294,3.1356,4314.7,4313.1,3.2078]
[1759308641591,3.1356,4314.7,4310.8,0.422]
[1759308641592,3.1356,4313.2,4310.8,0.422]
[1759308641893,3.1356,4313.2,4309.9,3.2077]
[1759308641894,3.2078,4312.1,4310.4,0.41745]
[1759308642091,3.2078,4310.5,4310.4,0.00287885]
[1759308642289,6.3434,4310.5,4310.4,0.00287885]
[1759308642697,3.2078,4311.0,4310.4,5.42387885]
[1759308642894,0.00216496,4312.1,4310.7,0.41741]
[1759308643095,0.00216496,4312.1,4311.6,3.2078]
[1759308643595,0.00216496,4312.1,4311.1,3.2078]
[1759308643801,3.2078,4313.2,4311.8,3.2078]
[1759308643991,3.2078,4315.1,4313.7,0.41713]
[1759308644195,3.2078,4315.8,4314.0,3.2078]
[1759308644490,3.2078,4314.5,4313.8,3.2626]
[1759308644696,6.3434,4315.2,4313.1,0.41718]
[1759308644996,6.3434,4315.2,4314.0,3.2078]
[1759308645194,3.2078,4314.2,4314.0,0.00258696]
[1759308645498,3.13798966,4315.2,4314.4,0.41706]
[1759308645499,3.2078,4314.7,4314.4,0.41706]
[1759308645688,0.00238966,4315.2,4315.0,3.2626]
[1759308645887,0.00238966,4315.2,4315.1,3.2078]
[1759308646099,0.00238966,4315.2,4314.9,0.83701]
[1759308646288,3.2078,4315.1,4314.0,0.00258696]
[1759308646489,0.00238966,4315.2,4314.3,3.2078]
[1759308646695,0.00238966,4315.2,4315.1,3.2626]
[1759308646993,0.00238966,4315.2,4315.1,3.6826]
[1759308647197,3.2078,4316.7,4316.4,0.41687]
[1759308647392,3.2078,4316.7,4315.1,8.6826]
[1759308647393,0.277,4316.7,4315.7,3.2078]
[1759308647592,3.2078,4316.1,4315.3,0.41697]
[1759308647796,3.1356,4316.6,4315.8,3.2078]
[1759308647992,3.2078,4316.7,4315.1,3.2078]
[1759308648297,3.2078,4315.5,4314.0,0.00258696]
[1759308648503,3.2078,4315.3,4314.2,0.41708]
[1759308648710,3.2078,4315.9,4314.7,3.2078]
[1759308648907,3.2078,4316.0,4314.7,0.41703]
[1759308649106,0.00296992,4316.7,4314.5,0.417]
[1759308649307,3.1356,4320.1,4318.5,0.41665]
[1759308649610,3.2078,4320.7,4319.5,0.41656]
[1759308649901,40.8,4321.6,4320.2,3.2078]
[1759308650102,40.8,4321.6,4318.2,0.0964]
[1759308650103,3.2078,4321.2,4320.3,3.2078]
[1759308650298,3.2078,4320.5,4320.3,0.00165911]
[1759308650700,5.0,4320.4,4318.8,3.2078]
[1759308651007,5.0,4320.4,4318.3,0.41668]
[1759308651008,3.2078,4319.4,4318.3,3.2078]
[1759308651211,3.2078,4318.9,4318.0,0.41671]
[1759308651405,3.2078,4319.3,4318.1,0.428]
[1759308651601,3.1356,4318.6,4317.4,3.2078]
[1759308651805,3.2078,4318.7,4318.1,0.0017196]
[1759308652101,3.2078,4318.2,4315.4,3.2078]
[1759308652303,3.1356,4315.5,4313.2,3.2078]
[1759308652502,3.1356,4315.5,4311.6,3.2626]
[1759308652503,3.2078,4313.3,4312.5,0.41724]
[1759308652704,3.2078,4313.3,4312.6,0.429]
[1759308653005,3.2078,4313.3,4312.0,3.2626]
[1759308653006,3.2078,4312.7,4312.5,0.428]
[1759308653206,3.2078,4312.7,4312.6,3.1423]
[1759308653407,0.00228916,4313.3,4312.6,3.5703]
[1759308653608,0.00228916,4313.3,4313.1,3.1423]
[1759308654008,0.00228916,4313.3,4313.2,3.5703]
[1759308654208,0.00228916,4313.3,4313.2,3.1423]
[1759308654406,0.00228916,4313.3,4313.2,39.7233]
[1759308655412,8.21008916,4313.3,4312.3,3.21050008]
[1759308655601,3.2078,4312.6,4312.3,0.00270008]
[1759308655909,3.2078,4312.6,4312.4,0.425]
[1759308656105,44.0078,4313.2,4312.5,36.582]
[1759308656298,3.2078,4312.7,4312.4,3.1423]
[1759308656504,3.2078,4312.7,4312.5,0.425]
[1759308656896,3.2078,4312.7,4312.4,3.1423]
[1759308657098,0.00228916,4313.3,4312.4,3.1423]
[1759308657307,3.2078,4312.9,4312.3,0.00270008]
[1759308657511,0.00228916,4313.3,4312.5,3.1423]
[1759308657706,0.00228916,4313.3,4312.6,36.586]
[1759308658005,3.2078,4313.2,4312.8,3.1423]
[1759308658404,3.2078,4313.2,4312.4,3.1423]
[1759308658611,3.2078,4312.6,4312.5,39.7303]
[1759308658807,3.2078,4312.6,4312.5,3.1423]
[1759308659012,8.2078,4312.6,4312.3,0.00270008]
[1759308659200,5.0,4312.6,4312.4,0.423]
[1759308659512,3.2078,4313.1,4312.4,3.5653]
[1759308659710,3.2078,4313.1,4312.4,3.1423]
[1759308659910,3.2078,4312.6,4312.5,0.423]
[1759308660207,3.2078,4312.6,4312.3,0.00270008]
[1759308660410,5.5547,4312.5,4310.8,3.2078]
[1759308660713,3.2078,4311.5,4310.3,3.2078]
[1759308660903,3.2078,4311.5,4309.3,39.3113]
[1759308660904,3.2078,4310.4,4309.8,0.423]
[1759308661104,3.2078,4310.3,4309.8,0.423]
[1759308661304,0.9767,4310.2,4308.2,0.422]
[1759308661511,0.97874961,4310.2,4308.3,0.422]
[1759308661811,3.2078,4309.3,4308.4,0.422]
[1759308662006,3.2078,4308.6,4308.2,0.00169728]
[1759308662208,3.2078,4308.6,4307.3,1.2651]
[1759308662404,0.422,4309.2,4307.3,1.2651]
[1759308662405,3.2078,4307.4,4307.3,1.2651]
[1759308662603,3.2078,4307.4,4306.5,3.1423]
[1759308662811,3.2078,4306.9,4306.7,0.422]
[1759308663113,3.2078,4307.5,4306.8,0.422]
[1759308663313,0.00217713,4306.9,4306.8,3.1423]
[1759308663501,3.2078,4308.4,4306.8,3.5633]
[1759308663707,3.2078,4307.9,4307.1,3.2078]
[1759308663904,3.2078,4307.9,4306.7,0.00269483]
[1759308663905,3.2078,4308.9,4307.7,3.2078]
[1759308664100,3.2078,4308.2,4307.8,0.421]
[1759308664309,3.2078,4309.1,4307.9,36.604]
[1759308664513,3.2078,4309.6,4308.5,3.1423]
[1759308664700,3.2078,4308.9,4308.0,3.1423]
[1759308664901,0.00248462,4308.9,4308.1,3.6288]
[1759308665104,3.2078,4309.0,4308.2,3.1423]
[1759308665304,0.421,4310.7,4309.2,1.2651]
[1759308665510,3.2078,4309.5,4309.4,3.1423]
[1759308665710,3.2078,4310.2,4309.4,3.1423]
[1759308666011,3.2078,4309.7,4309.2,1.2651]
[1759308666313,0.00208244,4309.7,4309.3,3.1423]
[1759308666505,3.2078,4309.4,4309.2,1.2651]
[1759308666707,0.00208244,4309.7,4309.3,3.5623]
[1759308666708,3.20988244,4309.7,4309.3,3.5623]
[1759308667010,3.2078,4309.6,4309.4,3.5623]
[1759308667211,8.2078,4309.6,4308.1,0.42]
[1759308667428,3.2078,4308.5,4307.6,3.1423]
[1759308667707,3.2078,4308.7,4307.7,0.421]
[1759308667908,3.2078,4309.3,4309.2,1.2651]
[1759308668115,3.2078,4309.4,4309.2,4.4074]
[1759308668305,3.2078,4310.8,4309.4,3.1423]
[1759308668506,3.2078,4311.3,4309.8,3.2078]
[1759308668814,3.2421,4309.8,4309.5,0.42]
[1759308669010,36.195,4312.5,4309.5,0.42]
[1759308669011,3.2421,4314.3,4310.9,1.04348]
[1759308669212,3.2421,4314.3,4310.6,10.43571]
[1759308669213,3.2078,4314.8,4312.9,3.1423]
[1759308669414,0.00213749,4314.8,4314.1,3.2078]
[1759308669714,0.00213749,4314.8,4312.9,3.14420854]
[1759308669715,3.2078,4314.2,4313.2,0.422]
[1759308669911,3.2421,4313.9,4312.9,0.00190854]
[1759308670103,3.2421,4313.2,4312.9,0.00190854]
[1759308670305,3.2078,4313.4,4312.9,0.00190854]
[1759308670610,3.2078,4313.4,4311.6,3.2078]
[1759308670611,3.2421,4313.2,4311.6,3.2078]
[1759308670801,3.2421,4313.2,4311.7,0.421]
[1759308670802,6.4499,4313.2,4311.7,0.421]
[1759308671004,3.2078,4312.9,4311.6,3.2078]
[1759308671312,3.2421,4312.8,4311.1,3.2078]
[1759308671520,3.2078,4312.6,4311.1,3.21013053]
[1759308671817,3.2421,4312.8,4311.8,3.2078]
[1759308672111,3.2421,4312.2,4311.1,0.00233053]
[1759308672313,6.4499,4311.7,4311.1,0.00233053]
[1759308672507,0.00185326,4311.7,4311.2,3.2078]
[1759308672713,0.00185326,4311.7,4311.2,6.3501]
[1759308672913,0.00185326,4311.7,4311.4,0.41735]
[1759308673120,3.2421,4313.9,4311.5,39.7563]